[Event "Early-Titled-Tuesday-Blitz-February-13-2024"]
[Site "Chess.com"]
[Date "2024.02.13"]
[Round "5"]
[White "Abund"]
[Black "pooh2012"]
[Result "1-0"]
[WhiteElo "2762"]
[BlackElo "2563"]
[TimeControl "180+1"]
[EndTime "9:00:34 PST"]
[Termination "Abund won on time"]

1. Nf3 {[%clk 0:03:00.9]} 1... Nf6 {[%clk 0:02:59.1]} 2. g3 {[%clk 0:03:01.4]}
2... b5 {[%clk 0:02:56.3]} 3. Bg2 {[%clk 0:03:01.2]} 3... Bb7 {[%clk 0:02:56.1]}
4. O-O {[%clk 0:03:00.6]} 4... e6 {[%clk 0:02:55]} 5. d3 {[%clk 0:03:00.9]} 5...
Be7 {[%clk 0:02:50.8]} 6. a4 {[%clk 0:03:01.1]} 6... b4 {[%clk 0:02:46.8]} 7.
Nbd2 {[%clk 0:03:00.7]} 7... a5 {[%clk 0:02:45.5]} 8. e4 {[%clk 0:02:58.9]} 8...
d6 {[%clk 0:02:44.7]} 9. Qe2 {[%clk 0:02:57.1]} 9... O-O {[%clk 0:02:42.9]} 10.
Nc4 {[%clk 0:02:57.5]} 10... Nfd7 {[%clk 0:02:33.8]} 11. c3 {[%clk 0:02:54]}
11... c5 {[%clk 0:02:29.8]} 12. Bf4 {[%clk 0:02:49.9]} 12... Nb6 {[%clk
0:02:09.8]} 13. Nfd2 {[%clk 0:02:44.1]} 13... Nc6 {[%clk 0:01:56.4]} 14. Rfd1
{[%clk 0:02:39.8]} 14... Nxc4 {[%clk 0:01:47.5]} 15. Nxc4 {[%clk 0:02:39.1]}
15... Ba6 {[%clk 0:01:47.4]} 16. h4 {[%clk 0:02:32.2]} 16... Qc7 {[%clk
0:01:32.4]} 17. h5 {[%clk 0:02:22.1]} 17... h6 {[%clk 0:01:30.5]} 18. Qg4 {[%clk
0:02:22.5]} 18... Kh8 {[%clk 0:01:26.2]} 19. Rac1 {[%clk 0:02:15.4]} 19... Bxc4
{[%clk 0:01:25.6]} 20. dxc4 {[%clk 0:02:15.7]} 20... Ne5 {[%clk 0:01:21.8]} 21.
Qe2 {[%clk 0:02:13.7]} 21... bxc3 {[%clk 0:01:19.6]} 22. bxc3 {[%clk 0:02:11.3]}
22... Rab8 {[%clk 0:01:15.6]} 23. Rb1 {[%clk 0:02:11.5]} 23... Qc6 {[%clk
0:01:10.2]} 24. Rb5 {[%clk 0:02:11.2]} 24... Rxb5 {[%clk 0:00:51.5]} 25. cxb5
{[%clk 0:02:09.2]} 25... Qc7 {[%clk 0:00:47.2]} 26. Bc1 {[%clk 0:01:57.6]} 26...
c4 {[%clk 0:00:45.8]} 27. Be3 {[%clk 0:01:55.6]} 27... Nd3 {[%clk 0:00:43.2]}
28. Qa2 {[%clk 0:01:48.7]} 28... Bg5 {[%clk 0:00:26.3]} 29. Qd2 {[%clk
0:01:20.4]} 29... Bxe3 {[%clk 0:00:24.9]} 30. Qxe3 {[%clk 0:01:21.3]} 30... Rb8
{[%clk 0:00:20.8]} 31. Bf1 {[%clk 0:01:21]} 31... Nc5 {[%clk 0:00:19]} 32. Ra1
{[%clk 0:01:15.5]} 32... d5 {[%clk 0:00:17.2]} 33. exd5 {[%clk 0:01:12.2]} 33...
exd5 {[%clk 0:00:18.1]} 34. Bg2 {[%clk 0:01:09.5]} 34... Qd6 {[%clk 0:00:17.5]}
35. Ra2 {[%clk 0:01:02.3]} 35... Nd3 {[%clk 0:00:15.8]} 36. Qd4 {[%clk
0:00:52.1]} 36... Rd8 {[%clk 0:00:14]} 37. Re2 {[%clk 0:00:43.8]} 37... Qc5
{[%clk 0:00:12.4]} 38. Qxc5 {[%clk 0:00:22.3]} 38... Nxc5 {[%clk 0:00:13.3]} 39.
Re5 {[%clk 0:00:22.5]} 39... Nxa4 {[%clk 0:00:12.6]} 40. Rxd5 {[%clk 0:00:20.6]}
40... Rb8 {[%clk 0:00:11.9]} 41. Rd4 {[%clk 0:00:13.3]} 41... Nxc3 {[%clk
0:00:11.1]} 42. Rxc4 {[%clk 0:00:11.9]} 42... Nxb5 {[%clk 0:00:08.1]} 43. Ra4
{[%clk 0:00:12.2]} 43... Nd6 {[%clk 0:00:05.5]} 44. Rxa5 {[%clk 0:00:12.7]}
44... Rb5 {[%clk 0:00:05.7]} 45. Ra6 {[%clk 0:00:08.9]} 45... Nf5 {[%clk
0:00:02.5]} 46. Be4 {[%clk 0:00:09.2]} 46... Kh7 {[%clk 0:00:01.3]} 47. g4
{[%clk 0:00:09.2]} 47... g6 {[%clk 0:00:01.8]} 48. gxf5 {[%clk 0:00:07.3]} 1-0

[Event "Early-Titled-Tuesday-Blitz-February-13-2024"]
[Site "Chess.com"]
[Date "2024.02.13"]
[Round "5"]
[White "Ready4abattle"]
[Black "martinmena"]
[Result "1-0"]
[WhiteElo "2245"]
[BlackElo "2111"]
[TimeControl "180+1"]
[EndTime "9:00:35 PST"]
[Termination "Ready4abattle won on time"]

1. e4 {[%clk 0:02:51.9]} 1... c6 {[%clk 0:02:58.6]} 2. d4 {[%clk 0:02:51.5]}
2... d5 {[%clk 0:02:59.5]} 3. e5 {[%clk 0:02:51.3]} 3... Bf5 {[%clk 0:02:58.1]}
4. Nd2 {[%clk 0:02:51.6]} 4... e6 {[%clk 0:02:48]} 5. Nb3 {[%clk 0:02:51.9]}
5... Ne7 {[%clk 0:02:44.4]} 6. Nf3 {[%clk 0:02:51.9]} 6... h5 {[%clk 0:02:42]}
7. Bd2 {[%clk 0:02:50.7]} 7... Bg6 {[%clk 0:02:29.5]} 8. a4 {[%clk 0:02:48.1]}
8... a5 {[%clk 0:02:23]} 9. c4 {[%clk 0:02:44.8]} 9... dxc4 {[%clk 0:02:10.3]}
10. Bxc4 {[%clk 0:02:44.6]} 10... Nd5 {[%clk 0:02:10.6]} 11. O-O {[%clk
0:02:41.1]} 11... Na6 {[%clk 0:02:08.4]} 12. Bxa5 {[%clk 0:02:32.3]} 12... b6
{[%clk 0:02:06.4]} 13. Bd2 {[%clk 0:02:32.4]} 13... Nab4 {[%clk 0:01:59.2]} 14.
Qe2 {[%clk 0:02:14.1]} 14... Be7 {[%clk 0:01:44.3]} 15. Rfc1 {[%clk 0:02:06.8]}
15... Nc2 {[%clk 0:01:30.5]} 16. Ra2 {[%clk 0:01:59.8]} 16... Ncb4 {[%clk
0:01:23.4]} 17. Bxb4 {[%clk 0:01:55.3]} 17... Nxb4 {[%clk 0:01:22.4]} 18. Raa1
{[%clk 0:01:53.8]} 18... h4 {[%clk 0:01:08.2]} 19. h3 {[%clk 0:01:29.8]} 19...
Bf5 {[%clk 0:00:58.4]} 20. Qd2 {[%clk 0:01:27.6]} 20... g5 {[%clk 0:00:36.8]}
21. Qc3 {[%clk 0:01:20.4]} 21... g4 {[%clk 0:00:26.7]} 22. hxg4 {[%clk
0:01:21.3]} 22... Bxg4 {[%clk 0:00:20.3]} 23. Nbd2 {[%clk 0:01:19.9]} 23... h3
{[%clk 0:00:18.2]} 24. g3 {[%clk 0:01:19.7]} 24... c5 {[%clk 0:00:09]} 25. Bb5+
{[%clk 0:01:09.3]} 25... Kf8 {[%clk 0:00:09.4]} 26. Kh2 {[%clk 0:01:00.6]} 26...
Qd5 {[%clk 0:00:07.8]} 27. Bc4 {[%clk 0:00:42.7]} 27... Qc6 {[%clk 0:00:06.5]}
28. Rg1 {[%clk 0:00:32.2]} 28... Rd8 {[%clk 0:00:06.7]} 29. Be2 {[%clk
0:00:22.5]} 29... cxd4 {[%clk 0:00:03.8]} 30. Nxd4 {[%clk 0:00:20.6]} 30... Qxc3
{[%clk 0:00:02.8]} 31. bxc3 {[%clk 0:00:20.2]} 31... Bxe2 {[%clk 0:00:02.8]} 32.
cxb4 {[%clk 0:00:09.2]} 32... Bd3 {[%clk 0:00:02.2]} 33. N2f3 {[%clk 0:00:08.6]}
33... Be4 {[%clk 0:00:02.3]} 34. Rge1 {[%clk 0:00:08.1]} 34... Bxf3 {[%clk
0:00:02.2]} 35. Nxf3 {[%clk 0:00:08.1]} 35... Bxb4 {[%clk 0:00:03.1]} 36. Re3
{[%clk 0:00:07.7]} 36... Bc5 {[%clk 0:00:04]} 37. Rb3 {[%clk 0:00:07.3]} 37...
Kg7 {[%clk 0:00:04.4]} 38. Ng5 {[%clk 0:00:07.1]} 38... Rb8 {[%clk 0:00:04.8]}
39. Nf3 {[%clk 0:00:07.1]} 39... Rhf8 {[%clk 0:00:05.2]} 40. Ra2 {[%clk
0:00:07.5]} 40... Be7 {[%clk 0:00:04]} 41. Kxh3 {[%clk 0:00:07.8]} 41... Bc5
{[%clk 0:00:04.2]} 42. Kg2 {[%clk 0:00:08.3]} 42... Rh8 {[%clk 0:00:04.9]} 43.
Rab2 {[%clk 0:00:07.8]} 43... Rh5 {[%clk 0:00:05.5]} 44. a5 {[%clk 0:00:08.3]}
44... Bxf2 {[%clk 0:00:02.9]} 45. Kxf2 {[%clk 0:00:08]} 45... Rf5 {[%clk
0:00:02.9]} 46. axb6 {[%clk 0:00:08.1]} 46... Rb7 {[%clk 0:00:03]} 47. Rc3
{[%clk 0:00:08]} 47... f6 {[%clk 0:00:03.3]} 48. Rc7+ {[%clk 0:00:08.6]} 48...
Rxc7 {[%clk 0:00:03.5]} 49. bxc7 {[%clk 0:00:09.5]} 49... fxe5 {[%clk
0:00:02.9]} 50. c8=Q {[%clk 0:00:09.8]} 50... Rf8 {[%clk 0:00:03.2]} 51. Rb7+
{[%clk 0:00:10]} 51... Kg6 {[%clk 0:00:02.2]} 52. Qxe6+ {[%clk 0:00:10]} 1-0

[Event "Early-Titled-Tuesday-Blitz-February-13-2024"]
[Site "Chess.com"]
[Date "2024.02.13"]
[Round "5"]
[White "Leebit02"]
[Black "NastyaHn"]
[Result "0-1"]
[WhiteElo "2543"]
[BlackElo "2398"]
[TimeControl "180+1"]
[EndTime "9:00:36 PST"]
[Termination "NastyaHn won on time"]

1. d4 {[%clk 0:03:00]} 1... d5 {[%clk 0:02:58.8]} 2. c4 {[%clk 0:02:56.9]} 2...
e6 {[%clk 0:02:58.7]} 3. Nf3 {[%clk 0:02:56.9]} 3... Nf6 {[%clk 0:02:58.4]} 4.
g3 {[%clk 0:02:57.3]} 4... Be7 {[%clk 0:02:58.3]} 5. Bg2 {[%clk 0:02:57.6]} 5...
O-O {[%clk 0:02:58.6]} 6. O-O {[%clk 0:02:56.5]} 6... dxc4 {[%clk 0:02:58.9]} 7.
Qc2 {[%clk 0:02:56.7]} 7... a6 {[%clk 0:02:58.3]} 8. a4 {[%clk 0:02:56.2]} 8...
Bd7 {[%clk 0:02:57.4]} 9. Qxc4 {[%clk 0:02:56.5]} 9... Bc6 {[%clk 0:02:57.1]}
10. Bf4 {[%clk 0:02:56.6]} 10... Bd6 {[%clk 0:02:53.8]} 11. Qc1 {[%clk
0:02:54.8]} 11... Nbd7 {[%clk 0:02:47.4]} 12. Nc3 {[%clk 0:02:45]} 12... Nd5
{[%clk 0:02:28.2]} 13. Bg5 {[%clk 0:02:19.8]} 13... Be7 {[%clk 0:02:19.8]} 14.
h4 {[%clk 0:02:08.4]} 14... h6 {[%clk 0:02:09.9]} 15. Bd2 {[%clk 0:02:05.5]}
15... Nxc3 {[%clk 0:02:05.7]} 16. bxc3 {[%clk 0:02:04.2]} 16... Nf6 {[%clk
0:02:05.9]} 17. Rd1 {[%clk 0:01:59.9]} 17... Be4 {[%clk 0:02:02]} 18. c4 {[%clk
0:01:53.6]} 18... Rc8 {[%clk 0:01:41.3]} 19. Bc3 {[%clk 0:01:39.1]} 19... c6
{[%clk 0:01:35.4]} 20. Qb2 {[%clk 0:01:37.4]} 20... Qc7 {[%clk 0:01:23]} 21. a5
{[%clk 0:01:36.5]} 21... Rfd8 {[%clk 0:01:17.3]} 22. Qb3 {[%clk 0:00:45.2]}
22... c5 {[%clk 0:01:11.1]} 23. Rac1 {[%clk 0:00:36.5]} 23... cxd4 {[%clk
0:01:06.7]} 24. Bxd4 {[%clk 0:00:36.5]} 24... Nd7 {[%clk 0:00:56]} 25. Qe3
{[%clk 0:00:32.2]} 25... Bc6 {[%clk 0:00:54.1]} 26. Ra1 {[%clk 0:00:29.9]} 26...
Bf6 {[%clk 0:00:51.3]} 27. Bxf6 {[%clk 0:00:25.6]} 27... Nxf6 {[%clk 0:00:49.7]}
28. Ne5 {[%clk 0:00:25.7]} 28... Bxg2 {[%clk 0:00:48.9]} 29. Kxg2 {[%clk
0:00:26.4]} 29... Rxd1 {[%clk 0:00:44.7]} 30. Rxd1 {[%clk 0:00:26.5]} 30... Qxa5
{[%clk 0:00:44.8]} 31. Rd4 {[%clk 0:00:22]} 31... Qc7 {[%clk 0:00:41.7]} 32. f3
{[%clk 0:00:20.2]} 32... a5 {[%clk 0:00:36.6]} 33. Nd3 {[%clk 0:00:20.7]} 33...
b6 {[%clk 0:00:29.4]} 34. g4 {[%clk 0:00:19.9]} 34... Nh7 {[%clk 0:00:15.1]} 35.
Re4 {[%clk 0:00:17.7]} 35... a4 {[%clk 0:00:12.7]} 36. Qc1 {[%clk 0:00:17.7]}
36... Ra8 {[%clk 0:00:11.8]} 37. Qa3 {[%clk 0:00:17.7]} 37... Nf6 {[%clk
0:00:10.2]} 38. Rd4 {[%clk 0:00:18.1]} 38... Nd7 {[%clk 0:00:10.1]} 39. g5
{[%clk 0:00:15.7]} 39... Nc5 {[%clk 0:00:10]} 40. gxh6 {[%clk 0:00:12.1]} 40...
gxh6 {[%clk 0:00:10.1]} 41. Rg4+ {[%clk 0:00:12.2]} 41... Kh7 {[%clk 0:00:09.5]}
42. Nf4 {[%clk 0:00:11.9]} 42... Qe5 {[%clk 0:00:06]} 43. Qc1 {[%clk 0:00:09.1]}
43... a3 {[%clk 0:00:05.6]} 44. Qc2+ {[%clk 0:00:09.4]} 44... Qf5 {[%clk
0:00:05.6]} 45. e4 {[%clk 0:00:08.3]} 45... Qe5 {[%clk 0:00:05.3]} 46. Nh3
{[%clk 0:00:03.2]} 46... Qb2 {[%clk 0:00:05]} 0-1

[Event "Early-Titled-Tuesday-Blitz-February-13-2024"]
[Site "Chess.com"]
[Date "2024.02.13"]
[Round "5"]
[White "DIMONBANAN"]
[Black "OhanyanEminChess"]
[Result "0-1"]
[WhiteElo "2575"]
[BlackElo "2810"]
[TimeControl "180+1"]
[EndTime "9:00:38 PST"]
[Termination "OhanyanEminChess won by resignation"]

1. e4 {[%clk 0:03:00.9]} 1... c5 {[%clk 0:02:59.2]} 2. Nf3 {[%clk 0:02:58.4]}
2... e6 {[%clk 0:02:59.5]} 3. d4 {[%clk 0:02:58.7]} 3... cxd4 {[%clk 0:02:59.7]}
4. Nxd4 {[%clk 0:02:59.6]} 4... Nf6 {[%clk 0:02:59.4]} 5. Nc3 {[%clk 0:02:59.2]}
5... Nc6 {[%clk 0:02:59.7]} 6. Nxc6 {[%clk 0:02:58.7]} 6... bxc6 {[%clk
0:02:58.6]} 7. e5 {[%clk 0:02:59.4]} 7... Nd5 {[%clk 0:02:58.6]} 8. Nxd5 {[%clk
0:02:57.9]} 8... cxd5 {[%clk 0:02:57.5]} 9. Bd3 {[%clk 0:02:58]} 9... d6 {[%clk
0:02:50]} 10. Bf4 {[%clk 0:02:57.5]} 10... Be7 {[%clk 0:02:14.9]} 11. O-O {[%clk
0:02:55.1]} 11... O-O {[%clk 0:02:11.8]} 12. Qh5 {[%clk 0:02:41.2]} 12... g6
{[%clk 0:02:04.3]} 13. Qe2 {[%clk 0:02:17.1]} 13... Bb7 {[%clk 0:01:27.7]} 14.
Rfd1 {[%clk 0:02:08.2]} 14... dxe5 {[%clk 0:01:16.3]} 15. Bxe5 {[%clk
0:02:07.5]} 15... Bf6 {[%clk 0:01:17]} 16. Rac1 {[%clk 0:01:50.7]} 16... Bxe5
{[%clk 0:01:09.3]} 17. Qxe5 {[%clk 0:01:49.1]} 17... Rc8 {[%clk 0:01:09.6]} 18.
h3 {[%clk 0:01:35.8]} 18... Qc7 {[%clk 0:01:08.6]} 19. Qe3 {[%clk 0:01:31.8]}
19... Qb6 {[%clk 0:01:07.1]} 20. Qxb6 {[%clk 0:01:29.1]} 20... axb6 {[%clk
0:01:08]} 21. c4 {[%clk 0:01:26.3]} 21... Ba6 {[%clk 0:00:32.1]} 22. Bf1 {[%clk
0:01:16.7]} 22... Bxc4 {[%clk 0:00:26.4]} 23. Bxc4 {[%clk 0:01:13.8]} 23... Rxc4
{[%clk 0:00:24.9]} 24. Rxc4 {[%clk 0:01:10.1]} 24... dxc4 {[%clk 0:00:25.8]} 25.
Rd6 {[%clk 0:01:10.7]} 25... Ra8 {[%clk 0:00:16.3]} 26. Rxb6 {[%clk 0:01:04.6]}
26... Rxa2 {[%clk 0:00:15.5]} 27. Rb4 {[%clk 0:01:03.4]} 27... Ra1+ {[%clk
0:00:14.8]} 28. Kh2 {[%clk 0:01:03.7]} 28... Rc1 {[%clk 0:00:15.7]} 29. b3
{[%clk 0:00:47.5]} 29... c3 {[%clk 0:00:15.9]} 30. Rc4 {[%clk 0:00:48.2]} 30...
Kg7 {[%clk 0:00:11]} 31. b4 {[%clk 0:00:48.5]} 31... Kf6 {[%clk 0:00:11]} 32. b5
{[%clk 0:00:48.1]} 32... Rb1 {[%clk 0:00:06.6]} 33. Rxc3 {[%clk 0:00:47.6]}
33... Rxb5 {[%clk 0:00:06.9]} 34. Rf3+ {[%clk 0:00:46.2]} 34... Rf5 {[%clk
0:00:06.3]} 35. Ra3 {[%clk 0:00:26.7]} 35... Rxf2 {[%clk 0:00:06.1]} 36. Kg3
{[%clk 0:00:27.6]} 36... Rb2 {[%clk 0:00:06.2]} 37. Ra8 {[%clk 0:00:28.5]} 37...
h5 {[%clk 0:00:05.8]} 38. Ra3 {[%clk 0:00:27.8]} 38... g5 {[%clk 0:00:04.9]} 39.
Rf3+ {[%clk 0:00:24.7]} 39... Kg6 {[%clk 0:00:05]} 40. Ra3 {[%clk 0:00:25.6]}
40... f5 {[%clk 0:00:04]} 41. Kf3 {[%clk 0:00:25.5]} 41... Kf6 {[%clk
0:00:03.8]} 42. Rc3 {[%clk 0:00:23.5]} 42... g4+ {[%clk 0:00:03.2]} 43. hxg4
{[%clk 0:00:23.4]} 43... hxg4+ {[%clk 0:00:04.1]} 44. Kg3 {[%clk 0:00:23.3]}
44... Kg5 {[%clk 0:00:04]} 45. Ra3 {[%clk 0:00:19.2]} 45... f4+ {[%clk
0:00:03.8]} 46. Kh2 {[%clk 0:00:19.7]} 46... f3 {[%clk 0:00:04.2]} 47. Kg1
{[%clk 0:00:19.9]} 47... Rxg2+ {[%clk 0:00:03.4]} 48. Kh1 {[%clk 0:00:20.5]}
48... Re2 {[%clk 0:00:03.1]} 49. Kg1 {[%clk 0:00:20.4]} 49... e5 {[%clk
0:00:02.9]} 50. Ra8 {[%clk 0:00:19.6]} 50... Kf4 {[%clk 0:00:03]} 51. Kf1 {[%clk
0:00:20.5]} 51... Rb2 {[%clk 0:00:02.7]} 52. Ra1 {[%clk 0:00:18.6]} 52... g3
{[%clk 0:00:02.7]} 53. Kg1 {[%clk 0:00:17.7]} 53... e4 {[%clk 0:00:02.3]} 54.
Rf1 {[%clk 0:00:16.9]} 54... Rg2+ {[%clk 0:00:03.2]} 55. Kh1 {[%clk 0:00:17.1]}
55... Rh2+ {[%clk 0:00:04.1]} 56. Kg1 {[%clk 0:00:17.4]} 56... f2+ {[%clk
0:00:03.8]} 57. Rxf2+ {[%clk 0:00:17.9]} 57... Rxf2 {[%clk 0:00:04.2]} 58. Kh1
{[%clk 0:00:17.6]} 58... e3 {[%clk 0:00:04.3]} 59. Kg1 {[%clk 0:00:18]} 59...
Kf3 {[%clk 0:00:05.2]} 0-1

[Event "Early-Titled-Tuesday-Blitz-February-13-2024"]
[Site "Chess.com"]
[Date "2024.02.13"]
[Round "5"]
[White "Slovineanu"]
[Black "szefru"]
[Result "0-1"]
[WhiteElo "2421"]
[BlackElo "2275"]
[TimeControl "180+1"]
[EndTime "9:00:38 PST"]
[Termination "szefru won on time"]

1. d4 {[%clk 0:02:58.5]} 1... Nf6 {[%clk 0:02:55.4]} 2. Nf3 {[%clk 0:02:57.6]}
2... g6 {[%clk 0:02:53.2]} 3. Nbd2 {[%clk 0:02:57]} 3... Bg7 {[%clk 0:02:52.4]}
4. e4 {[%clk 0:02:57]} 4... d6 {[%clk 0:02:51]} 5. Bb5+ {[%clk 0:02:56.6]} 5...
c6 {[%clk 0:02:50.8]} 6. Bd3 {[%clk 0:02:56.2]} 6... O-O {[%clk 0:02:50.5]} 7.
O-O {[%clk 0:02:56.8]} 7... Nbd7 {[%clk 0:02:45.2]} 8. Re1 {[%clk 0:02:56]} 8...
e5 {[%clk 0:02:45.3]} 9. dxe5 {[%clk 0:02:54.5]} 9... dxe5 {[%clk 0:02:46.2]}
10. a4 {[%clk 0:02:53.7]} 10... Re8 {[%clk 0:02:25.7]} 11. a5 {[%clk 0:02:47.4]}
11... Nc5 {[%clk 0:02:23.4]} 12. Nc4 {[%clk 0:02:10.3]} 12... Nfxe4 {[%clk
0:01:57.4]} 13. Be3 {[%clk 0:01:29.7]} 13... Nxd3 {[%clk 0:01:53.5]} 14. cxd3
{[%clk 0:01:29.8]} 14... Nd6 {[%clk 0:01:50.6]} 15. Bc5 {[%clk 0:01:19.7]} 15...
Nxc4 {[%clk 0:01:49.8]} 16. dxc4 {[%clk 0:01:19.4]} 16... Bg4 {[%clk 0:01:47.3]}
17. Qxd8 {[%clk 0:01:15.8]} 17... Raxd8 {[%clk 0:01:48.2]} 18. Bxa7 {[%clk
0:01:15.5]} 18... e4 {[%clk 0:01:42.1]} 19. Ng5 {[%clk 0:01:10.2]} 19... Bxb2
{[%clk 0:01:07.4]} 20. Ra2 {[%clk 0:00:58.4]} 20... Bc3 {[%clk 0:01:06.1]} 21.
Rb1 {[%clk 0:00:58.1]} 21... Rd7 {[%clk 0:00:52.8]} 22. h3 {[%clk 0:00:53.6]}
22... Bd1 {[%clk 0:00:38.3]} 23. h4 {[%clk 0:00:18.2]} 23... h6 {[%clk
0:00:23.5]} 24. Nh3 {[%clk 0:00:18.3]} 24... Ra8 {[%clk 0:00:17]} 25. Be3 {[%clk
0:00:17.8]} 25... Rxa5 {[%clk 0:00:15.7]} 26. Rxa5 {[%clk 0:00:17.3]} 26... Bxa5
{[%clk 0:00:16.6]} 27. Bxh6 {[%clk 0:00:17.3]} 27... Bc2 {[%clk 0:00:14.7]} 28.
Ra1 {[%clk 0:00:16.5]} 28... b6 {[%clk 0:00:14.9]} 29. Be3 {[%clk 0:00:15.7]}
29... c5 {[%clk 0:00:13.7]} 30. Nf4 {[%clk 0:00:15.7]} 30... Bc3 {[%clk
0:00:11.7]} 31. Rc1 {[%clk 0:00:14.6]} 31... Rd1+ {[%clk 0:00:10]} 32. Rxd1
{[%clk 0:00:14.3]} 32... Bxd1 {[%clk 0:00:10.9]} 33. Nd5 {[%clk 0:00:14.5]}
33... Ba5 {[%clk 0:00:10.3]} 34. Bf4 {[%clk 0:00:11.2]} 34... Be2 {[%clk
0:00:10.2]} 35. Ne3 {[%clk 0:00:11.3]} 35... Bd3 {[%clk 0:00:08.9]} 36. Bc7
{[%clk 0:00:11.5]} 36... Kg7 {[%clk 0:00:08.9]} 37. f3 {[%clk 0:00:11.3]} 37...
exf3 {[%clk 0:00:08.6]} 38. gxf3 {[%clk 0:00:11.8]} 38... Kf6 {[%clk 0:00:09.5]}
39. Kf2 {[%clk 0:00:12.2]} 39... Ke6 {[%clk 0:00:08.7]} 40. f4 {[%clk
0:00:07.4]} 40... Kd7 {[%clk 0:00:08.9]} 41. Be5 {[%clk 0:00:06.7]} 41... Bd2
{[%clk 0:00:08.2]} 42. Kf3 {[%clk 0:00:05.2]} 42... Bxe3 {[%clk 0:00:08.4]} 43.
Kxe3 {[%clk 0:00:05.7]} 43... Bxc4 {[%clk 0:00:09.1]} 44. f5 {[%clk 0:00:05.8]}
44... Kc6 {[%clk 0:00:05.3]} 45. fxg6 {[%clk 0:00:05.7]} 45... fxg6 {[%clk
0:00:05.5]} 46. Kd2 {[%clk 0:00:02.9]} 46... Kd5 {[%clk 0:00:05.4]} 47. Bg3
{[%clk 0:00:01.7]} 47... b5 {[%clk 0:00:06]} 48. Kc3 {[%clk 0:00:01.8]} 48...
Be2 {[%clk 0:00:05.8]} 49. Bf2 {[%clk 0:00:01.2]} 49... b4+ {[%clk 0:00:05.6]}
50. Kb3 {[%clk 0:00:01.6]} 50... Bd1+ {[%clk 0:00:05.8]} 51. Kb2 {[%clk
0:00:01.7]} 51... Kc4 {[%clk 0:00:06.5]} 0-1

[Event "Early-Titled-Tuesday-Blitz-February-13-2024"]
[Site "Chess.com"]
[Date "2024.02.13"]
[Round "5"]
[White "Sokoloco"]
[Black "Zhigalko_Sergei"]
[Result "1-0"]
[WhiteElo "2803"]
[BlackElo "2960"]
[TimeControl "180+1"]
[EndTime "9:00:41 PST"]
[Termination "Sokoloco won by checkmate"]

1. b3 {[%clk 0:03:00.9]} 1... e5 {[%clk 0:02:59.4]} 2. Bb2 {[%clk 0:03:01.1]}
2... e4 {[%clk 0:02:59.1]} 3. c4 {[%clk 0:02:59.2]} 3... Nf6 {[%clk 0:02:58.2]}
4. Nc3 {[%clk 0:02:58.1]} 4... Bc5 {[%clk 0:02:49.4]} 5. d4 {[%clk 0:02:54.8]}
5... exd3 {[%clk 0:02:49.1]} 6. Qxd3 {[%clk 0:02:52]} 6... O-O {[%clk
0:02:46.6]} 7. e3 {[%clk 0:02:52.1]} 7... Nc6 {[%clk 0:02:46.5]} 8. Nf3 {[%clk
0:02:51.4]} 8... Re8 {[%clk 0:02:46.1]} 9. Be2 {[%clk 0:02:50.3]} 9... d6 {[%clk
0:02:35.6]} 10. O-O {[%clk 0:02:50.2]} 10... Bg4 {[%clk 0:02:29.4]} 11. Rad1
{[%clk 0:02:48.8]} 11... Bh5 {[%clk 0:02:23.1]} 12. Nh4 {[%clk 0:02:39]} 12...
Ne5 {[%clk 0:02:15.1]} 13. Qd2 {[%clk 0:02:38.6]} 13... Nfg4 {[%clk 0:01:52.4]}
14. Nf5 {[%clk 0:02:07.9]} 14... Bg6 {[%clk 0:01:52.2]} 15. Nd4 {[%clk 0:01:58]}
15... Qh4 {[%clk 0:01:40.1]} 16. h3 {[%clk 0:01:57.3]} 16... Nf6 {[%clk
0:01:37.6]} 17. Nf3 {[%clk 0:01:56.3]} 17... Nxf3+ {[%clk 0:01:29.9]} 18. Bxf3
{[%clk 0:01:57.2]} 18... Rab8 {[%clk 0:01:17.4]} 19. Ba1 {[%clk 0:01:22.4]}
19... Bb6 {[%clk 0:01:08.6]} 20. Na4 {[%clk 0:01:18.7]} 20... Ne4 {[%clk
0:01:04.9]} 21. Qb2 {[%clk 0:01:19.4]} 21... f6 {[%clk 0:01:04.8]} 22. Nxb6
{[%clk 0:01:19.8]} 22... axb6 {[%clk 0:01:05.1]} 23. Rd4 {[%clk 0:01:19.3]}
23... Qg5 {[%clk 0:01:00.2]} 24. Qe2 {[%clk 0:01:06.4]} 24... Qa5 {[%clk
0:00:46.9]} 25. h4 {[%clk 0:00:41.8]} 25... h6 {[%clk 0:00:44]} 26. Qc2 {[%clk
0:00:34.2]} 26... Qf5 {[%clk 0:00:29.7]} 27. Qd1 {[%clk 0:00:26.8]} 27... Bh7
{[%clk 0:00:25.8]} 28. a4 {[%clk 0:00:23.4]} 28... Re7 {[%clk 0:00:20.6]} 29.
Rd5 {[%clk 0:00:23.6]} 29... Qe6 {[%clk 0:00:20.3]} 30. Bg4 {[%clk 0:00:23.3]}
30... Qf7 {[%clk 0:00:19.6]} 31. Bh5 {[%clk 0:00:22.7]} 31... Bg6 {[%clk
0:00:19.5]} 32. Bf3 {[%clk 0:00:22.4]} 32... Rbe8 {[%clk 0:00:18.6]} 33. Qd4
{[%clk 0:00:21.8]} 33... Nc5 {[%clk 0:00:16.3]} 34. Qd1 {[%clk 0:00:19.2]} 34...
Be4 {[%clk 0:00:15.5]} 35. Bh5 {[%clk 0:00:16.2]} 35... Bg6 {[%clk 0:00:11.1]}
36. Bxg6 {[%clk 0:00:15.3]} 36... Qxg6 {[%clk 0:00:10.9]} 37. b4 {[%clk
0:00:12.7]} 37... Ne4 {[%clk 0:00:10.2]} 38. a5 {[%clk 0:00:12.7]} 38... bxa5
{[%clk 0:00:09.2]} 39. Rxa5 {[%clk 0:00:13.6]} 39... Qf7 {[%clk 0:00:07]} 40.
Qc2 {[%clk 0:00:13.1]} 40... b6 {[%clk 0:00:05.1]} 41. Ra7 {[%clk 0:00:12.6]}
41... c5 {[%clk 0:00:04.4]} 42. Ra6 {[%clk 0:00:12.5]} 42... Rb7 {[%clk
0:00:03.5]} 43. b5 {[%clk 0:00:12.9]} 43... Qe6 {[%clk 0:00:03.2]} 44. Rd1
{[%clk 0:00:12.5]} 44... Kh8 {[%clk 0:00:02.5]} 45. Rd5 {[%clk 0:00:12.7]} 45...
Qf7 {[%clk 0:00:02.4]} 46. Bb2 {[%clk 0:00:12.7]} 46... Qe6 {[%clk 0:00:02.7]}
47. Qd3 {[%clk 0:00:13.1]} 47... Qg4 {[%clk 0:00:02.8]} 48. f3 {[%clk
0:00:13.1]} 48... Qxh4 {[%clk 0:00:02.5]} 49. fxe4 {[%clk 0:00:13.4]} 49... Rxe4
{[%clk 0:00:01.8]} 50. Bc3 {[%clk 0:00:08.4]} 50... Rbe7 {[%clk 0:00:01.6]} 51.
Rxd6 {[%clk 0:00:07.2]} 51... Rg4 {[%clk 0:00:01.3]} 52. Ra8+ {[%clk 0:00:06.9]}
52... Re8 {[%clk 0:00:01.7]} 53. Rxe8# {[%clk 0:00:07.5]} 1-0